[Event "*** Titled Tuesday 3|2 Blitz"]
[Site "Chess.com"]
[Date "2017.06.06"]
[Round "7"]
[White "kikydu96"]
[Black "amurdercastle"]
[Result "0-1"]
[WhiteElo "2307"]
[BlackElo "2295"]
[TimeControl "180+2"]
[EndTime "15:24:47 PDT"]
[Termination "amurdercastle won by resignation"]

1. e4 {[%clk 0:03:02]} 1... c6 {[%clk 0:03:00.8]} 2. d4 {[%clk 0:03:00.6]} 2...
d5 {[%clk 0:03:02.7]} 3. Nc3 {[%clk 0:03:01.2]} 3... dxe4 {[%clk 0:03:03.8]} 4.
Nxe4 {[%clk 0:03:03.1]} 4... Bf5 {[%clk 0:03:05.6]} 5. Ng3 {[%clk 0:03:03.9]}
5... Bg6 {[%clk 0:03:06.7]} 6. h4 {[%clk 0:03:05.4]} 6... h6 {[%clk 0:03:07.3]}
7. Nf3 {[%clk 0:03:06.5]} 7... e6 {[%clk 0:03:08.7]} 8. Ne5 {[%clk 0:03:06.9]}
8... Bh7 {[%clk 0:03:09.1]} 9. Bd3 {[%clk 0:03:08.3]} 9... Bxd3 {[%clk
0:03:08.2]} 10. Qxd3 {[%clk 0:03:10.2]} 10... Nd7 {[%clk 0:03:09.5]} 11. f4
{[%clk 0:03:10.7]} 11... Be7 {[%clk 0:03:09.9]} 12. Bd2 {[%clk 0:03:08]} 12...
Bxh4 {[%clk 0:03:09.4]} 13. O-O-O {[%clk 0:03:08.2]} 13... Nxe5 {[%clk
0:03:09.4]} 14. fxe5 {[%clk 0:03:04.7]} 14... Bxg3 {[%clk 0:03:10.7]} 15. Qxg3
{[%clk 0:03:04.4]} 15... Ne7 {[%clk 0:03:12.6]} 16. Bb4 {[%clk 0:02:36.8]} 16...
Nf5 {[%clk 0:03:03]} 17. Qf4 {[%clk 0:02:36.9]} 17... g5 {[%clk 0:03:03.5]} 18.
Qf2 {[%clk 0:02:33.8]} 18... a5 {[%clk 0:03:04]} 19. Ba3 {[%clk 0:02:28.7]}
19... g4 {[%clk 0:02:38.6]} 20. Rh5 {[%clk 0:02:21.2]} 20... Qd5 {[%clk
0:02:32.3]} 21. Kb1 {[%clk 0:02:19.2]} 21... O-O-O {[%clk 0:02:26.1]} 22. c3
{[%clk 0:02:06]} 22... Qe4+ {[%clk 0:02:24.6]} 23. Kc1 {[%clk 0:01:51.9]} 23...
g3 {[%clk 0:02:01.1]} 24. Qd2 {[%clk 0:01:40.7]} 24... Qg4 {[%clk 0:01:49.2]}
25. Rhh1 {[%clk 0:01:39.9]} 25... h5 {[%clk 0:01:47.2]} 26. Bc5 {[%clk
0:01:29.3]} 26... Kc7 {[%clk 0:01:45.7]} 27. Rhf1 {[%clk 0:01:02]} 27... b6
{[%clk 0:01:40.6]} 28. Rf4 {[%clk 0:00:59.6]} 28... Qg6 {[%clk 0:01:32.2]} 29.
Ba3 {[%clk 0:00:57.6]} 29... h4 {[%clk 0:01:33.2]} 30. Qd3 {[%clk 0:00:55]}
30... h3 {[%clk 0:01:25.7]} 31. gxh3 {[%clk 0:00:52.5]} 31... Rxh3 {[%clk
0:01:27.6]} 32. Qa6 {[%clk 0:00:46.2]} 32... Qg5 {[%clk 0:00:29.4]} 33. Qa7+
{[%clk 0:00:16.9]} 33... Kc8 {[%clk 0:00:29.3]} 34. Qa8+ {[%clk 0:00:15.8]}
34... Kd7 {[%clk 0:00:24.8]} 35. Qb7+ {[%clk 0:00:16.3]} 35... Ke8 {[%clk
0:00:25]} 36. Qxc6+ {[%clk 0:00:17.4]} 36... Rd7 {[%clk 0:00:26]} 37. Qc8+
{[%clk 0:00:17.8]} 37... Qd8 {[%clk 0:00:27.2]} 38. Qc6 {[%clk 0:00:13.1]} 38...
Qc7 {[%clk 0:00:25.3]} 39. Qg2 {[%clk 0:00:10.6]} 39... Rh2 {[%clk 0:00:25.7]}
40. Qf3 {[%clk 0:00:09.8]} 40... Qc4 {[%clk 0:00:21.2]} 41. Rg4 {[%clk 0:00:10]}
41... Kd8 {[%clk 0:00:17.4]} 42. Qa8+ {[%clk 0:00:08.6]} 42... Kc7 {[%clk
0:00:17.4]} 43. Qa7+ {[%clk 0:00:09.7]} 43... Kc6 {[%clk 0:00:18.1]} 44. Qa8+
{[%clk 0:00:10.7]} 44... Kb5 {[%clk 0:00:17.2]} 45. Qe8 {[%clk 0:00:07]} 45...
Qc6 {[%clk 0:00:16.3]} 46. Kb1 {[%clk 0:00:06.6]} 46... Ka6 {[%clk 0:00:16]} 47.
Rg8 {[%clk 0:00:05.5]} 47... Rc7 {[%clk 0:00:04.3]} 48. Bd6 {[%clk 0:00:05.1]}
48... Qxe8 {[%clk 0:00:05]} 49. Rxe8 {[%clk 0:00:05.1]} 49... Rd7 {[%clk
0:00:05.8]} 50. Rg8 {[%clk 0:00:04.4]} 50... Kb5 {[%clk 0:00:05.3]} 51. Rg1
{[%clk 0:00:03]} 51... Kc6 {[%clk 0:00:06.2]} 52. b3 {[%clk 0:00:03.4]} 52...
Kd5 {[%clk 0:00:05.9]} 53. Rf8 {[%clk 0:00:02.7]} 53... Ke4 {[%clk 0:00:06.5]}
54. Rg8 {[%clk 0:00:03.3]} 54... Kf3 {[%clk 0:00:07.5]} 55. Kc1 {[%clk
0:00:03.8]} 55... Kf2 {[%clk 0:00:08.5]} 56. Rd1 {[%clk 0:00:04.6]} 56... Kg2
{[%clk 0:00:09.5]} 57. Rd2+ {[%clk 0:00:05.7]} 57... Kf3 {[%clk 0:00:10.5]} 58.
Rxh2 {[%clk 0:00:05.1]} 58... gxh2 {[%clk 0:00:11.1]} 59. Rh8 {[%clk 0:00:07]}
59... Kg2 {[%clk 0:00:12.5]} 60. Rg8+ {[%clk 0:00:08.1]} 60... Ng3 {[%clk
0:00:14.4]} 61. Rh8 {[%clk 0:00:09.2]} 61... h1=Q+ {[%clk 0:00:15]} 62. Rxh1
{[%clk 0:00:11.1]} 62... Kxh1 {[%clk 0:00:16.9]} 63. Kd2 {[%clk 0:00:12.4]}
63... Nf5 {[%clk 0:00:18.4]} 64. Ba3 {[%clk 0:00:12.5]} 64... Kg2 {[%clk
0:00:18.8]} 65. Kd3 {[%clk 0:00:13.4]} 65... Kf3 {[%clk 0:00:20.7]} 66. Bb2
{[%clk 0:00:14]} 66... Rd5 {[%clk 0:00:21.1]} 67. c4 {[%clk 0:00:15]} 67... Rd7
{[%clk 0:00:22.7]} 68. a3 {[%clk 0:00:16]} 68... Rd8 {[%clk 0:00:22.4]} 69. b4
{[%clk 0:00:17.2]} 69... axb4 {[%clk 0:00:23.1]} 70. axb4 {[%clk 0:00:19.1]}
70... Ra8 {[%clk 0:00:24.5]} 71. b5 {[%clk 0:00:20]} 71... Ra2 {[%clk
0:00:24.7]} 72. Bc3 {[%clk 0:00:21.1]} 72... Ne7 {[%clk 0:00:21.6]} 73. c5
{[%clk 0:00:21.2]} 73... Nd5 {[%clk 0:00:22]} 74. cxb6 {[%clk 0:00:21.1]} 74...
Nxb6 {[%clk 0:00:17.7]} 75. Bb4 {[%clk 0:00:22]} 75... Rb2 {[%clk 0:00:18.3]}
76. Kc3 {[%clk 0:00:22.4]} 76... Rb1 {[%clk 0:00:19.1]} 77. Bc5 {[%clk
0:00:22.9]} 77... Nd5+ {[%clk 0:00:20.3]} 78. Kc4 {[%clk 0:00:23.4]} 78... Ke4
{[%clk 0:00:20.8]} 79. b6 {[%clk 0:00:24.1]} 79... Nxb6+ {[%clk 0:00:21.5]} 0-1

[Event "*** Titled Tuesday 3|2 Blitz"]
[Site "Chess.com"]
[Date "2017.06.06"]
[Round "7"]
[White "Blitzstream"]
[Black "Ind1anStar"]
[Result "0-1"]
[WhiteElo "2475"]
[BlackElo "2320"]
[TimeControl "180+2"]
[EndTime "15:26:16 PDT"]
[Termination "Ind1anStar won by resignation"]

1. d4 {[%clk 0:03:02]} 1... Nf6 {[%clk 0:02:59.5]} 2. h4 {[%clk 0:02:56.7]} 2...
d5 {[%clk 0:02:55.7]} 3. h5 {[%clk 0:02:57.4]} 3... h6 {[%clk 0:02:55.9]} 4. a4
{[%clk 0:02:55.9]} 4... Bg4 {[%clk 0:02:45.4]} 5. a5 {[%clk 0:02:52.3]} 5... a6
{[%clk 0:02:44]} 6. Nf3 {[%clk 0:02:46.5]} 6... Bxh5 {[%clk 0:02:44.2]} 7. Ne5
{[%clk 0:02:47]} 7... Nbd7 {[%clk 0:02:41.4]} 8. c4 {[%clk 0:02:46.2]} 8... e6
{[%clk 0:02:39.7]} 9. Qb3 {[%clk 0:02:24]} 9... Rb8 {[%clk 0:02:32.6]} 10. cxd5
{[%clk 0:02:15.8]} 10... exd5 {[%clk 0:02:29.1]} 11. e4 {[%clk 0:02:17]} 11...
Qe7 {[%clk 0:01:49.8]} 12. Nc3 {[%clk 0:02:08.6]} 12... Nxe5 {[%clk 0:01:45.1]}
13. dxe5 {[%clk 0:02:09.5]} 13... Qxe5 {[%clk 0:01:45.5]} 14. f4 {[%clk
0:02:10]} 14... Qe6 {[%clk 0:01:38.4]} 15. e5 {[%clk 0:02:03.4]} 15... Bg6
{[%clk 0:01:32.9]} 16. Be3 {[%clk 0:01:56.7]} 16... c5 {[%clk 0:01:18.5]} 17.
O-O-O {[%clk 0:01:37.3]} 17... d4 {[%clk 0:00:58.6]} 18. Bc4 {[%clk 0:01:37]}
18... Qe7 {[%clk 0:00:45.3]} 19. Nb5 {[%clk 0:01:26]} 19... axb5 {[%clk
0:00:38.3]} 20. Bxb5+ {[%clk 0:01:26.4]} 20... Nd7 {[%clk 0:00:39.3]} 21. Bxd4
{[%clk 0:01:23.6]} 21... cxd4 {[%clk 0:00:37.7]} 22. Rxd4 {[%clk 0:01:22.3]}
22... Bf5 {[%clk 0:00:36.4]} 23. Rhd1 {[%clk 0:01:18]} 23... Rc8+ {[%clk
0:00:35.4]} 24. Kd2 {[%clk 0:01:17.9]} 24... Qc5 {[%clk 0:00:27.4]} 25. Ke1
{[%clk 0:01:17.9]} 25... Qc7 {[%clk 0:00:14]} 26. Rxd7 {[%clk 0:01:08.3]} 26...
Bxd7 {[%clk 0:00:15.2]} 27. Rxd7 {[%clk 0:01:09.8]} 27... Qxd7 {[%clk
0:00:16.7]} 28. Bxd7+ {[%clk 0:01:09.6]} 28... Kxd7 {[%clk 0:00:17.1]} 29. Qxb7+
{[%clk 0:01:07]} 29... Rc7 {[%clk 0:00:18.4]} 30. Qd5+ {[%clk 0:01:06.3]} 30...
Kc8 {[%clk 0:00:19.9]} 31. Ke2 {[%clk 0:00:52.7]} 31... Kb8 {[%clk 0:00:17.4]}
32. Qd8+ {[%clk 0:00:49.9]} 32... Rc8 {[%clk 0:00:16.9]} 33. Qb6+ {[%clk
0:00:50.1]} 33... Ka8 {[%clk 0:00:18.3]} 34. Qa6+ {[%clk 0:00:34.5]} 34... Kb8
{[%clk 0:00:18.6]} 35. Qb5+ {[%clk 0:00:34.7]} 35... Ka8 {[%clk 0:00:18.8]} 36.
a6 {[%clk 0:00:35.3]} 36... Rb8 {[%clk 0:00:19]} 37. Qd5+ {[%clk 0:00:32.4]}
37... Ka7 {[%clk 0:00:20.3]} 38. Qxf7+ {[%clk 0:00:30.3]} 38... Kxa6 {[%clk
0:00:21.5]} 39. Qc4+ {[%clk 0:00:31]} 39... Ka7 {[%clk 0:00:20.6]} 40. Qa4+
{[%clk 0:00:30.3]} 40... Kb7 {[%clk 0:00:21.1]} 41. Qd7+ {[%clk 0:00:31.1]}
41... Ka8 {[%clk 0:00:21.7]} 42. Qc6+ {[%clk 0:00:32.4]} 42... Ka7 {[%clk
0:00:22.7]} 43. Qc7+ {[%clk 0:00:33.2]} 43... Rb7 {[%clk 0:00:24.2]} 44. Qa5+
{[%clk 0:00:32.1]} 44... Kb8 {[%clk 0:00:25.5]} 45. Qd8+ {[%clk 0:00:32.6]}
45... Ka7 {[%clk 0:00:27.1]} 46. e6 {[%clk 0:00:27]} 46... Rxb2+ {[%clk
0:00:26.6]} 47. Kf3 {[%clk 0:00:27.7]} 47... Rb3+ {[%clk 0:00:27.6]} 48. Ke4
{[%clk 0:00:26.2]} 48... Rb4+ {[%clk 0:00:27.8]} 49. Kf5 {[%clk 0:00:26.5]}
49... Rb8 {[%clk 0:00:26.4]} 50. e7 {[%clk 0:00:23.4]} 50... Bxe7 {[%clk
0:00:27.6]} 51. Qxe7+ {[%clk 0:00:24.3]} 51... Rb7 {[%clk 0:00:29]} 52. Qc5+
{[%clk 0:00:24.9]} 52... Kb8 {[%clk 0:00:28.7]} 53. Qe5+ {[%clk 0:00:25.5]}
53... Ka8 {[%clk 0:00:29.9]} 54. Qa5+ {[%clk 0:00:25.6]} 54... Kb8 {[%clk
0:00:29.6]} 55. Qe5+ {[%clk 0:00:27.1]} 55... Ka8 {[%clk 0:00:30.3]} 56. g3
{[%clk 0:00:25]} 56... Rf8+ {[%clk 0:00:27.6]} 57. Kg6 {[%clk 0:00:23.3]} 57...
Rf6+ {[%clk 0:00:26.3]} 58. Kh5 {[%clk 0:00:18.2]} 58... Rfb6 {[%clk 0:00:25]}
59. Qe8+ {[%clk 0:00:17.8]} 59... Rb8 {[%clk 0:00:24.5]} 60. Qa4+ {[%clk
0:00:17.9]} 60... Kb7 {[%clk 0:00:24.7]} 61. Qd7+ {[%clk 0:00:19.1]} 61... Ka6
{[%clk 0:00:25.5]} 62. Qxg7 {[%clk 0:00:19.9]} 62... Rc8 {[%clk 0:00:26.5]} 63.
g4 {[%clk 0:00:17.1]} 63... Rc1 {[%clk 0:00:21.5]} 64. g5 {[%clk 0:00:08.8]}
64... Rh1+ {[%clk 0:00:20.9]} 65. Kg4 {[%clk 0:00:10]} 65... hxg5 {[%clk
0:00:21.9]} 66. fxg5 {[%clk 0:00:09.4]} 66... Rg1+ {[%clk 0:00:23.4]} 67. Kf3
{[%clk 0:00:09.2]} 67... Rb3+ {[%clk 0:00:21.7]} 68. Ke4 {[%clk 0:00:09]} 68...
Rbg3 {[%clk 0:00:22.3]} 69. Qf6+ {[%clk 0:00:08.9]} 69... Kb7 {[%clk 0:00:23.1]}
70. Qe7+ {[%clk 0:00:09.8]} 70... Kb6 {[%clk 0:00:24.1]} 71. Qd6+ {[%clk
0:00:10.7]} 71... Kb5 {[%clk 0:00:25.3]} 72. Qd5+ {[%clk 0:00:11.7]} 72... Kb6
{[%clk 0:00:26.5]} 73. Qe6+ {[%clk 0:00:12.5]} 73... Kb5 {[%clk 0:00:27.7]} 74.
Qf5+ {[%clk 0:00:13.7]} 74... Kb6 {[%clk 0:00:28.5]} 75. Qf6+ {[%clk 0:00:14.6]}
75... Kb5 {[%clk 0:00:28.6]} 76. Qb2+ {[%clk 0:00:16]} 76... Kc6 {[%clk
0:00:28]} 77. Qc2+ {[%clk 0:00:16.6]} 77... Kb5 {[%clk 0:00:28.6]} 78. Qe2+
{[%clk 0:00:16.3]} 78... Kc6 {[%clk 0:00:28.8]} 79. Qa6+ {[%clk 0:00:16.2]}
79... Kc5 {[%clk 0:00:29.3]} 80. Qa7+ {[%clk 0:00:16.2]} 80... Kc6 {[%clk
0:00:30.1]} 81. Qa4+ {[%clk 0:00:13]} 81... Kc5 {[%clk 0:00:30.3]} 82. Qd4+
{[%clk 0:00:13.7]} 82... Kc6 {[%clk 0:00:31.4]} 83. Qf6+ {[%clk 0:00:14.6]}
83... Kc5 {[%clk 0:00:32.3]} 84. Qe7+ {[%clk 0:00:10.7]} 84... Kb5 {[%clk
0:00:32.7]} 85. Qd7+ {[%clk 0:00:11.4]} 85... Kc5 {[%clk 0:00:33.7]} 86. Qb7
{[%clk 0:00:09.2]} 86... Rxg5 {[%clk 0:00:31.5]} 87. Kf3 {[%clk 0:00:09.8]}
87... Rf5+ {[%clk 0:00:30.7]} 88. Ke3 {[%clk 0:00:09.2]} 88... Rgf1 {[%clk
0:00:30.1]} 89. Ke2 {[%clk 0:00:08.9]} 89... R1f2+ {[%clk 0:00:29.8]} 90. Ke1
{[%clk 0:00:09.1]} 90... Kd4 {[%clk 0:00:30.9]} 91. Qb6+ {[%clk 0:00:09]} 91...
Ke4 {[%clk 0:00:31.9]} 92. Qe6+ {[%clk 0:00:09.6]} 92... Kd4 {[%clk 0:00:31]}
93. Qd6+ {[%clk 0:00:10.6]} 93... Ke4 {[%clk 0:00:32]} 94. Qb6 {[%clk
0:00:09.3]} 94... Rf1+ {[%clk 0:00:31.8]} 95. Kd2 {[%clk 0:00:09.1]} 95... R5f2+
{[%clk 0:00:33.1]} 96. Kc3 {[%clk 0:00:07.8]} 96... Rc1+ {[%clk 0:00:34.5]} 97.
Kb4 {[%clk 0:00:09]} 97... Rb1+ {[%clk 0:00:35.6]} 98. Kc4 {[%clk 0:00:10.3]}
98... Rxb6 {[%clk 0:00:37]} 0-1

[Event "*** Titled Tuesday 3|2 Blitz"]
[Site "Chess.com"]
[Date "2017.06.06"]
[Round "8"]
[White "saraswathii"]
[Black "Indianlad"]
[Result "0-1"]
[WhiteElo "2282"]
[BlackElo "2586"]
[TimeControl "180+2"]
[EndTime "15:29:43 PDT"]
[Termination "Indianlad won by resignation"]

1. e4 {[%clk 0:02:58]} 1... g6 {[%clk 0:03:00.2]} 2. d3 {[%clk 0:02:56.7]} 2...
Bg7 {[%clk 0:03:02.1]} 3. Nf3 {[%clk 0:02:56.7]} 3... d5 {[%clk 0:03:03]} 4.
Nbd2 {[%clk 0:02:56.3]} 4... Nc6 {[%clk 0:02:59.4]} 5. g3 {[%clk 0:02:57.1]}
5... h5 {[%clk 0:03:00.7]} 6. h4 {[%clk 0:02:54.8]} 6... dxe4 {[%clk 0:03:00]}
7. dxe4 {[%clk 0:02:54.5]} 7... Nh6 {[%clk 0:03:01.3]} 8. Bg2 {[%clk 0:02:54.5]}
8... Ng4 {[%clk 0:03:01.5]} 9. O-O {[%clk 0:02:54.8]} 9... b6 {[%clk 0:03:02.5]}
10. Qe2 {[%clk 0:02:52.6]} 10... a5 {[%clk 0:03:02]} 11. Rd1 {[%clk 0:02:41.6]}
11... Ba6 {[%clk 0:03:02.5]} 12. Qe1 {[%clk 0:02:19.1]} 12... Nb4 {[%clk
0:03:03.4]} 13. Nb3 {[%clk 0:02:14.9]} 13... Nxc2 {[%clk 0:02:59]} 14. Rxd8+
{[%clk 0:02:10.6]} 14... Rxd8 {[%clk 0:03:00.9]} 0-1

[Event "*** Titled Tuesday 3|2 Blitz"]
[Site "Chess.com"]
[Date "2017.06.06"]
[Round "8"]
[White "Blitzking4444"]
[Black "angieflynn"]
[Result "1-0"]
[WhiteElo "2020"]
[BlackElo "1767"]
[TimeControl "180+2"]
[EndTime "15:31:45 PDT"]
[Termination "Blitzking4444 won by resignation"]

1. e4 {[%clk 0:03:02]} 1... e6 {[%clk 0:02:56.4]} 2. d4 {[%clk 0:03:02.7]} 2...
d5 {[%clk 0:02:56.9]} 3. Nd2 {[%clk 0:03:03.7]} 3... Nf6 {[%clk 0:02:56.5]} 4.
e5 {[%clk 0:03:05]} 4... Ne4 {[%clk 0:02:57.5]} 5. Nxe4 {[%clk 0:03:00.6]} 5...
dxe4 {[%clk 0:02:58.3]} 6. Bc4 {[%clk 0:03:01]} 6... b6 {[%clk 0:02:58.6]} 7.
Nh3 {[%clk 0:02:51.9]} 7... Bb7 {[%clk 0:02:54.3]} 8. Nf4 {[%clk 0:02:46.4]}
8... c5 {[%clk 0:02:44.1]} 9. d5 {[%clk 0:02:45]} 9... exd5 {[%clk 0:02:38.4]}
10. Bxd5 {[%clk 0:02:05.5]} 10... Qc7 {[%clk 0:02:25.7]} 11. e6 {[%clk
0:01:34.1]} 11... Bxd5 {[%clk 0:02:00.7]} 12. Qxd5 {[%clk 0:01:26.4]} 12... Qc6
{[%clk 0:02:01.4]} 13. exf7+ {[%clk 0:01:19.9]} 13... Ke7 {[%clk 0:01:57.4]} 14.
Ng6+ {[%clk 0:01:01.9]} 14... hxg6 {[%clk 0:01:52.4]} 15. Bg5+ {[%clk
0:01:01.9]} 1-0

[Event "*** Titled Tuesday 3|2 Blitz"]
[Site "Chess.com"]
[Date "2017.06.06"]
[Round "8"]
[White "penguingm1"]
[Black "Hikaru"]
[Result "0-1"]
[WhiteElo "2613"]
[BlackElo "2920"]
[TimeControl "180+2"]
[EndTime "15:33:21 PDT"]
[Termination "Hikaru won by resignation"]

1. d4 {[%clk 0:03:02]} 1... Nf6 {[%clk 0:03:02]} 2. c4 {[%clk 0:03:02.6]} 2...
b6 {[%clk 0:03:02.6]} 3. Nc3 {[%clk 0:03:02.4]} 3... Bb7 {[%clk 0:03:03.9]} 4.
Qc2 {[%clk 0:03:01.9]} 4... d5 {[%clk 0:03:01.7]} 5. cxd5 {[%clk 0:03:02]} 5...
Nxd5 {[%clk 0:03:01.5]} 6. e4 {[%clk 0:02:54.4]} 6... Nxc3 {[%clk 0:03:01.6]} 7.
bxc3 {[%clk 0:02:52.6]} 7... e6 {[%clk 0:03:03.5]} 8. Bb5+ {[%clk 0:02:52.1]}
8... c6 {[%clk 0:03:03.3]} 9. Bd3 {[%clk 0:02:52.3]} 9... c5 {[%clk 0:03:04.4]}
10. Nf3 {[%clk 0:02:31.6]} 10... Be7 {[%clk 0:03:03.9]} 11. O-O {[%clk
0:02:17.1]} 11... O-O {[%clk 0:03:02.1]} 12. Rd1 {[%clk 0:02:06.2]} 12... Qc7
{[%clk 0:03:00.6]} 13. Qe2 {[%clk 0:01:59.8]} 13... Nd7 {[%clk 0:03:00.5]} 14.
Bb2 {[%clk 0:01:57.5]} 14... Rac8 {[%clk 0:02:58]} 15. h3 {[%clk 0:01:30.6]}
15... Rfd8 {[%clk 0:02:56.3]} 16. a4 {[%clk 0:01:30.3]} 16... e5 {[%clk
0:02:52.8]} 17. d5 {[%clk 0:01:29.5]} 17... c4 {[%clk 0:02:53.1]} 18. Bc2 {[%clk
0:01:29.2]} 18... Nf6 {[%clk 0:02:49.4]} 19. Bc1 {[%clk 0:01:26.7]} 19... Ne8
{[%clk 0:02:43.4]} 20. Be3 {[%clk 0:01:27.2]} 20... f6 {[%clk 0:02:42.9]} 21.
Nd2 {[%clk 0:01:17.4]} 21... Bc5 {[%clk 0:02:37.8]} 22. Nxc4 {[%clk 0:00:41.5]}
22... Ba6 {[%clk 0:02:36.8]} 23. Bb3 {[%clk 0:00:29.3]} 23... Nd6 {[%clk
0:02:30.6]} 24. Qa2 {[%clk 0:00:29.4]} 24... Bxc4 {[%clk 0:02:30.4]} 25. Bxc4
{[%clk 0:00:28.4]} 25... Bxe3 {[%clk 0:02:30.9]} 26. Ba6 {[%clk 0:00:28.9]}
26... Bc5 {[%clk 0:02:30.5]} 27. Bxc8 {[%clk 0:00:28.1]} 27... Qxc8 {[%clk
0:02:30.6]} 28. Qe2 {[%clk 0:00:30]} 28... f5 {[%clk 0:02:28.1]} 29. exf5 {[%clk
0:00:30.1]} 29... Qxf5 {[%clk 0:02:30]} 30. Kh2 {[%clk 0:00:26.6]} 30... Bxf2
{[%clk 0:02:17.4]} 31. g4 {[%clk 0:00:18.1]} 31... Qf4+ {[%clk 0:02:17.5]} 32.
Kg2 {[%clk 0:00:18.8]} 32... Qg3+ {[%clk 0:02:16.5]} 0-1

[Event "*** Titled Tuesday 3|2 Blitz"]
[Site "Chess.com"]
[Date "2017.06.06"]
[Round "8"]
[White "GeorgMeier"]
[Black "TrickyTrapChess"]
[Result "0-1"]
[WhiteElo "2759"]
[BlackElo "2298"]
[TimeControl "180+2"]
[EndTime "15:33:22 PDT"]
[Termination "TrickyTrapChess won by resignation"]

1. Nf3 {[%clk 0:03:02]} 1... Nf6 {[%clk 0:02:51.2]} 2. g3 {[%clk 0:02:57.3]}
2... g6 {[%clk 0:02:52.2]} 3. Bg2 {[%clk 0:02:58.6]} 3... Bg7 {[%clk 0:02:52.7]}
4. O-O {[%clk 0:03:00.2]} 4... O-O {[%clk 0:02:54.1]} 5. d4 {[%clk 0:03:01.8]}
5... d6 {[%clk 0:02:50.3]} 6. b3 {[%clk 0:03:03.1]} 6... Nbd7 {[%clk 0:02:45.6]}
7. Bb2 {[%clk 0:03:02.9]} 7... c5 {[%clk 0:02:44.2]} 8. c4 {[%clk 0:03:02.6]}
8... Rb8 {[%clk 0:02:32]} 9. Nc3 {[%clk 0:02:51]} 9... a6 {[%clk 0:02:29.5]} 10.
Rc1 {[%clk 0:02:46.7]} 10... b5 {[%clk 0:02:26.9]} 11. dxc5 {[%clk 0:02:48]}
11... Nxc5 {[%clk 0:02:23.7]} 12. Nd4 {[%clk 0:02:48.8]} 12... Bd7 {[%clk
0:02:20]} 13. cxb5 {[%clk 0:02:37.2]} 13... axb5 {[%clk 0:02:19.3]} 14. b4
{[%clk 0:02:38.6]} 14... Na6 {[%clk 0:02:07.8]} 15. a3 {[%clk 0:02:32]} 15...
Qb6 {[%clk 0:01:58.7]} 16. e3 {[%clk 0:02:32.8]} 16... Rfc8 {[%clk 0:01:57.5]}
17. Qe2 {[%clk 0:02:32.6]} 17... e5 {[%clk 0:01:54.2]} 18. Nb3 {[%clk 0:02:32]}
18... Be6 {[%clk 0:01:51.7]} 19. Na5 {[%clk 0:02:29.3]} 19... d5 {[%clk
0:01:47.1]} 20. Rfd1 {[%clk 0:02:30]} 20... d4 {[%clk 0:01:43.9]} 21. Ne4 {[%clk
0:02:06.6]} 21... Nxe4 {[%clk 0:01:37.9]} 22. Bxe4 {[%clk 0:02:08.5]} 22... Rxc1
{[%clk 0:01:35.5]} 23. Rxc1 {[%clk 0:02:08]} 23... dxe3 {[%clk 0:01:36.8]} 24.
Qxe3 {[%clk 0:02:07.8]} 24... Qxe3 {[%clk 0:01:37.8]} 25. fxe3 {[%clk
0:02:08.9]} 25... Rd8 {[%clk 0:01:32.8]} 26. Nc6 {[%clk 0:02:08.7]} 26... Re8
{[%clk 0:01:32.1]} 27. Kf2 {[%clk 0:01:16.1]} 27... Bc4 {[%clk 0:01:30.3]} 28.
Na5 {[%clk 0:01:13.9]} 28... Be6 {[%clk 0:01:29]} 29. Rc6 {[%clk 0:00:57.8]}
29... Nb8 {[%clk 0:01:22.4]} 30. Rc7 {[%clk 0:00:59.1]} 30... Na6 {[%clk
0:01:21.4]} 31. Ke1 {[%clk 0:00:56.3]} 31... Nxc7 {[%clk 0:01:21.3]} 0-1

[Event "*** Titled Tuesday 3|2 Blitz"]
[Site "Chess.com"]
[Date "2017.06.06"]
[Round "8"]
[White "ProfCalculus"]
[Black "kikydu96"]
[Result "1-0"]
[WhiteElo "2159"]
[BlackElo "2296"]
[TimeControl "180+2"]
[EndTime "15:33:27 PDT"]
[Termination "ProfCalculus won by checkmate"]

1. d4 {[%clk 0:03:02]} 1... d5 {[%clk 0:03:00.4]} 2. c4 {[%clk 0:03:03.9]} 2...
c6 {[%clk 0:03:00.9]} 3. Nc3 {[%clk 0:03:04.7]} 3... Nf6 {[%clk 0:03:01.1]} 4.
e3 {[%clk 0:03:01.7]} 4... a6 {[%clk 0:03:00.7]} 5. Qc2 {[%clk 0:02:59.7]} 5...
e6 {[%clk 0:02:55.2]} 6. b3 {[%clk 0:02:56.2]} 6... Be7 {[%clk 0:02:54.3]} 7.
Bd3 {[%clk 0:02:56.6]} 7... O-O {[%clk 0:02:54.7]} 8. Nf3 {[%clk 0:02:57.6]}
8... Nbd7 {[%clk 0:02:55.4]} 9. O-O {[%clk 0:02:56.4]} 9... b5 {[%clk
0:02:55.7]} 10. Ne5 {[%clk 0:02:44.8]} 10... Bb7 {[%clk 0:02:50.6]} 11. Bb2
{[%clk 0:02:44.1]} 11... h6 {[%clk 0:02:49.9]} 12. f4 {[%clk 0:02:41.9]} 12...
Rc8 {[%clk 0:02:42.4]} 13. c5 {[%clk 0:02:42.7]} 13... Nxe5 {[%clk 0:02:30.1]}
14. fxe5 {[%clk 0:02:42.9]} 14... Nd7 {[%clk 0:02:31.2]} 15. e4 {[%clk
0:02:18.8]} 15... Bg5 {[%clk 0:02:14.4]} 16. Qe2 {[%clk 0:02:13.1]} 16... f6
{[%clk 0:02:02.6]} 17. exd5 {[%clk 0:02:07]} 17... exd5 {[%clk 0:01:57.3]} 18.
e6 {[%clk 0:02:04]} 18... Re8 {[%clk 0:01:56.1]} 19. Rae1 {[%clk 0:01:52.5]}
19... Nb8 {[%clk 0:01:34.2]} 20. Qh5 {[%clk 0:01:34.3]} 20... b4 {[%clk
0:01:10.1]} 21. Qf7+ {[%clk 0:01:32.5]} 21... Kh8 {[%clk 0:01:07]} 22. e7 {[%clk
0:01:25.2]} 22... Qd7 {[%clk 0:00:38.1]} 23. Qg6 {[%clk 0:01:25.6]} 23... Rxe7
{[%clk 0:00:37.6]} 24. Qh7# {[%clk 0:01:24.7]} 1-0